fUSD/lending_fUSD_20240109
["ID","MTS","AMOUNT","RATE_DAILY","PERIOD"]
[310938714,1704822789694,-500.0,0.00041835,30]
[310938715,1704822789704,-500.0,0.00041835,30]
[310938716,1704822789713,-500.0,0.00041835,30]
[310938717,1704822789722,-782.81,0.00041835,30]
[310938718,1704822789731,-723.9,0.00041835,30]
[310938719,1704822789740,-500.0,0.00041835,30]
[310938720,1704822789750,-500.0,0.00041835,30]
[310938721,1704822789758,-969.63,0.00041835,30]
[310938722,1704822789767,-566.95,0.00041835,30]
[310938723,1704822789776,-500.0,0.00041835,30]
[310938724,1704822789785,-500.0,0.00041835,30]
[310938725,1704822789795,-500.0,0.00041835,30]
[310938726,1704822789804,-623.06,0.00041835,30]
[310938727,1704822789814,-500.0,0.00041835,30]
[310938728,1704822789823,-516.99,0.00041835,30]
[310938729,1704822789833,-500.0,0.00041835,30]
[310938730,1704822789852,-702.04,0.00041835,30]
[310938731,1704822789879,-500.0,0.00041835,30]
[310938732,1704822789900,-500.0,0.00041835,30]
[310938733,1704822789911,-716.56,0.00041835,30]
[310938734,1704822789920,-748.95,0.00041835,30]
[310938735,1704822789930,-500.0,0.00041835,15]
[310938736,1704822789939,-632.4696506,0.00041835,30]
[310938737,1704822789948,-672.74,0.00041835,30]
[310938738,1704822789958,-500.0,0.00041835,30]
[310938739,1704822789967,-500.0,0.00041835,30]
[310938740,1704822789976,-539.4880749,0.00041835,30]
[310938741,1704822789985,-647.35,0.00041835,30]
[310938742,1704822789994,-685.1,0.00041835,30]
[310938743,1704822790003,-500.0,0.00041835,30]
[310938744,1704822790013,-1120.19,0.00041835,30]
[310938745,1704822790022,-500.0,0.00041835,30]
[310938746,1704822790031,-500.0,0.00041835,30]
[310938747,1704822790041,-500.32093831,0.00041835,30]
[310938748,1704822790051,-500.0,0.00041835,30]
[310938749,1704822790060,-500.0,0.00041835,30]
[310938750,1704822790070,-500.0,0.00041835,30]
[310938751,1704822790080,-647.58,0.00041835,30]
[310938752,1704822790089,-500.0,0.00041835,30]
[310938753,1704822790099,-500.0,0.00041835,30]
[310938754,1704822790108,-558.85,0.00041835,30]
[310938755,1704822790118,-742.86,0.00041835,30]
[310938756,1704822790128,-500.0,0.00041835,30]
[310938757,1704822790138,-581.63,0.00041835,30]
[310938758,1704822790147,-807.83,0.00041835,30]
[310938759,1704822790156,-500.0,0.00041835,30]
[310938760,1704822790166,-500.0,0.00041835,30]
[310938761,1704822790175,-500.0,0.00041835,30]
[310938762,1704822790184,-500.0,0.00041835,30]
[310938763,1704822790194,-517.95,0.00041835,30]
[310938764,1704822790204,-500.0,0.00041835,30]
[310938765,1704822790213,-500.0,0.00041835,30]
[310938766,1704822790223,-632.05,0.00041835,30]
[310938767,1704822790232,-500.0,0.00041835,30]
[310938768,1704822790242,-500.0,0.00041835,30]
[310938769,1704822790251,-504.2794902,0.00041835,30]
[310938770,1704822790260,-500.0,0.00041835,30]
[310938771,1704822790269,-654.13,0.00041835,30]
[310938772,1704822790278,-899.39,0.00041835,30]
[310938773,1704822790580,-500.0,0.00041835,30]
[310938774,1704822790630,-500.0,0.00041835,30]
[310938775,1704822790640,-537.47,0.00041835,30]
[310938776,1704822790650,-500.0,0.00041835,30]
[310938777,1704822790660,-680.46,0.00041835,30]
[310938778,1704822790669,-797.4,0.00041835,30]
[310938779,1704822790679,-1018.51,0.00041835,30]
[310938780,1704822790688,-500.0,0.00041835,7]
[310938781,1704822790698,-856.07,0.00041835,30]
[310938782,1704822790708,-500.0,0.00041835,30]
[310938783,1704822790717,-500.0,0.00041835,30]
[310938784,1704822790727,-500.0,0.00041835,30]
[310938785,1704822790736,-500.0,0.00041835,30]
[310938786,1704822790745,-1130.34,0.00041835,30]
[310938787,1704822790755,-593.8,0.00041835,30]
[310938788,1704822790768,-500.0,0.00041835,30]
[310938789,1704822790777,-511.72,0.00041835,30]
[310938790,1704822790787,-500.0,0.00041835,30]
[310938791,1704822790797,-952.27,0.00041835,30]
[310938792,1704822790807,-528.56,0.00041835,30]
[310938793,1704822790816,-536.2193752,0.00041835,30]
[310938794,1704822790826,-691.64,0.00041835,30]
[310938795,1704822790836,-176.91700483,0.00041835,30]
[310938796,1704822790845,-500.0,0.00041835,30]
[310938797,1704822790855,-566.63631163,0.00041835,30]
[310938798,1704822790864,-1470.07,0.00041835,30]
[310938799,1704822790874,-834.95,0.00041835,30]
[310938800,1704822790883,-500.0,0.00041835,30]
[310938801,1704822790892,-603.81,0.00041835,30]
[310938802,1704822790902,-500.0,0.00041835,30]
[310938803,1704822790912,-3062.67,0.00041835,30]
[310938804,1704822790921,-637.53,0.00041835,30]
[310938805,1704822790931,-500.0,0.00041835,30]
[310938806,1704822790940,-500.0,0.00041835,30]
[310938807,1704822790957,-500.0,0.00041835,30]
[310938808,1704822790966,-500.0,0.00041835,30]
[310938809,1704822790975,-951.54,0.00041835,30]
[310938810,1704822790985,-1554.84,0.00041835,30]
[310938811,1704822790994,-533.94727068,0.00041835,30]
[310938812,1704822791004,-500.0,0.00041835,30]
[310938813,1704822791014,-783.64,0.00041835,30]
[310938814,1704822791023,-500.0,0.00041835,30]
[310938815,1704822791032,-500.0,0.00041835,30]
[310938816,1704822791042,-500.0,0.00041835,30]
[310938817,1704822791051,-1000.0,0.00041835,2]
[310938818,1704822791061,-500.0,0.00041835,30]
[310938819,1704822791070,-955.99,0.00041835,30]
[310938820,1704822791080,-584.0,0.00041835,30]
[310938821,1704822791089,-531.66028431,0.00041835,30]
[310938822,1704822791099,-500.0,0.00041835,30]
[310938823,1704822791108,-742.2,0.00041835,30]
[310938824,1704822791118,-500.0,0.00041835,30]
[310938825,1704822791128,-667.03,0.00041835,30]
[310938826,1704822791138,-500.0,0.00041835,30]
[310938827,1704822791147,-1579.23,0.00041835,30]
[310938828,1704822791156,-500.0,0.00041835,30]
[310938829,1704822791166,-500.0,0.00041835,30]
[310938830,1704822791176,-1683.26,0.00041835,30]
[310938831,1704822791186,-500.0,0.00041835,30]
[310938832,1704822791196,-732.8,0.00041835,30]
[310938833,1704822791206,-500.0,0.00041835,30]
[310938834,1704822791216,-500.0,0.00041835,30]
[310938835,1704822791226,-1701.57,0.00041835,30]
[310938836,1704822791235,-500.0,0.00041835,30]
[310938837,1704822791244,-609.24,0.00041835,30]
[310938838,1704822791254,-995.31,0.00041835,30]
[310938839,1704822791264,-500.0,0.00041835,30]
[310938840,1704822791274,-500.0,0.00041835,30]
[310938841,1704822791284,-546.32,0.00041835,30]
[310938842,1704822791295,-1075.03,0.00041835,30]
[310938843,1704822791304,-1289.05,0.00041835,30]
[310938844,1704822791314,-500.0,0.00041835,30]
[310938845,1704822791325,-500.0,0.00041835,30]
[310938846,1704822791335,-500.0,0.00041835,30]
[310938847,1704822791346,-746.35,0.00041835,30]
[310938848,1704822791356,-500.0,0.00041835,30]
[310938849,1704822791366,-1189.53,0.00041835,30]
[310938850,1704822791377,-1605.53,0.00041835,30]
[310938851,1704822791386,-500.0,0.00041835,30]
[310938852,1704822791395,-1111.16,0.00041835,30]
[310938853,1704822791405,-500.0,0.00041835,30]
[310938854,1704822791415,-566.22,0.00041835,30]
[310938855,1704822791425,-1587.98,0.00041835,30]
[310938856,1704822791435,-927.99,0.00041835,30]
[310938857,1704822791445,-500.0,0.00041835,30]
[310938858,1704822791455,-665.79,0.00041835,30]
[310938859,1704822791465,-1083.99,0.00041835,30]
[310938860,1704822791474,-1352.1,0.00041835,30]
[310938861,1704822791484,-500.0,0.00041835,30]
[310938862,1704822791494,-657.61,0.00041835,30]
[310938863,1704822791504,-500.0,0.00041835,30]
[310938864,1704822791515,-831.46,0.00041835,30]
[310938865,1704822791524,-876.27,0.00041835,30]
[310938866,1704822791534,-1165.49,0.00041835,30]
[310938867,1704822791545,-1499.79,0.00041835,30]
[310938868,1704822791554,-1224.45,0.00041835,30]
[310938869,1704822791563,-585.09,0.00041835,30]
[310938870,1704822791573,-500.0,0.00041835,30]
[310938871,1704822791582,-1187.3,0.00041835,30]
[310938872,1704822791592,-500.0,0.00041835,30]
[310938873,1704822791601,-1451.41,0.00041835,30]
[310938874,1704822791610,-1109.01,0.00041835,30]
[310938875,1704822791620,-1165.31,0.00041835,30]
[310938876,1704822791630,-500.0,0.00041835,30]
[310938877,1704822791639,-500.0,0.00041835,30]
[310938878,1704822791649,-500.0,0.00041835,30]
[310938879,1704822791658,-1030.53,0.00041835,30]
[310938880,1704822791667,-713.27,0.00041835,30]
[310938881,1704822791677,-1058.21,0.00041835,30]
[310938882,1704822791686,-500.0,0.00041835,30]
[310938883,1704822791696,-1268.66,0.00041835,30]
[310938884,1704822791706,-2171.66,0.00041835,30]
[310938885,1704822791716,-657.69,0.00041835,30]
[310938886,1704822791726,-300.0,0.00041835,30]
[310938887,1704822791736,-698.65,0.00041835,30]
[310938888,1704822791746,-835.19,0.00041835,30]
[310938889,1704822791755,-500.0,0.00041835,30]
[310938890,1704822791765,-500.0,0.00041835,30]
[310938891,1704822791775,-500.0,0.00041835,30]
[310938892,1704822791785,-617.92,0.00041835,30]
[310938893,1704822791796,-816.63,0.00041835,5]
[310938894,1704822791806,-3829.67,0.00041835,30]
[310938895,1704822791816,-1000.0,0.00041835,2]
[310938896,1704822791825,-500.0,0.00041835,2]
[310938897,1704822791835,-653.11,0.00041835,30]
[310938898,1704822791845,-500.0,0.00041835,30]
[310938899,1704822791855,-1196.79,0.00041835,30]
[310938900,1704822791864,-500.0,0.00041835,30]
[310938901,1704822791874,-500.0,0.00041835,30]
[310938902,1704822791883,-924.68,0.00041835,30]
[310938903,1704822791893,-1534.65,0.00041835,30]
[310938904,1704822791902,-1071.73,0.00041835,30]
[310938905,1704822791911,-910.34,0.00041835,30]
[310938906,1704822791921,-563.27,0.00041835,30]
[310938907,1704822791931,-2625.83,0.00041835,30]
[310938908,1704822791940,-1003.2,0.00041835,30]
[310938909,1704822791950,-1069.06,0.00041835,30]
[310938910,1704822791960,-693.77,0.00041835,30]
[310938911,1704822791969,-3358.65,0.00041835,30]
[310938912,1704822791978,-3778.52,0.00041835,30]
[310938913,1704822791987,-775.18,0.00041835,30]
[310938914,1704822791997,-500.0,0.00041835,30]
[310938915,1704822792006,-1018.17,0.00041835,30]
[310938916,1704822792015,-233.57786063,0.00041835,30]
[310938917,1704822792025,-627.54,0.00041835,30]
[310938918,1704822792034,-1597.58,0.00041835,30]
[310938919,1704822792045,-680.27,0.00041835,30]
[310938920,1704822792055,-1108.25,0.00041835,30]
[310938921,1704822792064,-500.0,0.00041835,30]
[310938922,1704822792073,-680.58,0.00041835,30]
[310938923,1704822792083,-840.77,0.00041835,30]
[310938924,1704822792093,-500.0,0.00041835,30]
[310938925,1704822792102,-500.0,0.00041835,30]
[310938926,1704822792111,-1688.18,0.00041835,30]
[310938927,1704822792120,-500.0,0.00041835,30]
[310938928,1704822792130,-500.0,0.00041835,30]
[310938929,1704822792140,-764.23,0.00041835,30]
[310938930,1704822792149,-500.0,0.00041835,30]
[310938931,1704822792159,-500.0,0.00041835,30]
[310938932,1704822792168,-500.0,0.00041835,30]
[310938933,1704822792177,-1292.97,0.00041835,30]
[310938934,1704822792187,-2704.06,0.00041835,30]
[310938935,1704822792196,-897.63,0.00041835,30]
[310938936,1704822792206,-689.03,0.00041835,30]
[310938937,1704822792215,-1997.42,0.00041835,30]
[310938938,1704822792225,-753.25,0.00041835,30]
[310938939,1704822792234,-863.4,0.00041835,30]
[310938940,1704822792243,-500.0,0.00041835,30]
[310938941,1704822792252,-1469.75,0.00041835,30]
[310938942,1704822792262,-1538.51,0.00041835,30]
[310938943,1704822792271,-500.0,0.00041835,30]
[310938944,1704822792281,-744.34,0.00041835,30]
[310938945,1704822792291,-544.19,0.00041835,30]
[310938946,1704822792301,-1752.19,0.00041835,30]
[310938947,1704822792310,-1416.77,0.00041835,30]
[310938948,1704822792320,-500.0,0.00041835,10]
[310938949,1704822792329,-500.0,0.00041835,30]
[310938950,1704822792339,-500.0,0.00041835,30]
[310938951,1704822792348,-992.88,0.00041835,30]
[310938952,1704822792358,-907.17,0.00041835,30]
[310938953,1704822792367,-820.02,0.00041835,30]
[310938954,1704822792376,-696.79,0.00041835,30]
[310938955,1704822792385,-830.16,0.00041835,30]
[310938956,1704822792394,-1042.21,0.00041835,30]
[310938957,1704822792404,-921.85,0.00041835,30]
[310938958,1704822792413,-500.0,0.00041835,30]
[310938959,1704822792423,-936.43,0.00041835,30]
[310938960,1704822792432,-500.0,0.00041835,30]
[310938961,1704822792441,-500.0,0.00041835,30]
[310938962,1704822792450,-500.0,0.00041835,30]
[310938963,1704822792460,-500.0,0.00041835,30]
[310938964,1704822792469,-500.0,0.00041835,30]
[310938965,1704822792479,-500.0,0.00041835,30]
[310938966,1704822792488,-3608.68,0.00041835,30]
[310938967,1704822792497,-1062.16,0.00041835,30]
[310938968,1704822792509,-797.98,0.00041835,30]
[310938969,1704822792520,-848.43,0.00041835,30]
[310938970,1704822792530,-594.13,0.00041835,30]
[310938971,1704822792541,-543.9,0.00041835,30]
[310938972,1704822792551,-500.0,0.00041835,30]
[310938973,1704822792560,-500.0,0.00041835,30]
[310938974,1704822792570,-1432.21,0.00041835,30]
[310938975,1704822792579,-765.38,0.00041835,30]
[310938976,1704822792588,-1359.32,0.00041835,30]
[310938977,1704822792598,-500.0,0.00041835,30]
[310938978,1704822792608,-500.0,0.00041835,30]
[310938979,1704822792617,-1854.87,0.00041835,30]
[310938980,1704822792627,-720.0,0.00041835,30]
[310938981,1704822792637,-1281.62,0.00041835,30]
[310938982,1704822792646,-1462.19,0.00041835,30]
[310938983,1704822792655,-558.71,0.00041835,30]
[310938984,1704822792665,-225.56376997,0.00041835,30]
[310938985,1704822792674,-500.0,0.00041835,30]
[310938986,1704822792684,-543.96,0.00041835,30]
[310938987,1704822792693,-1104.04,0.00041835,30]
[310938988,1704822792702,-500.0,0.00041835,30]
[310938989,1704822792712,-500.0,0.00041835,30]
[310938990,1704822792721,-500.0,0.00041835,2]
[310938991,1704822792731,-2707.71,0.00041835,30]
[310938992,1704822792740,-651.83,0.00041835,30]
[310938993,1704822792750,-851.87,0.00041835,30]
[310938994,1704822792759,-708.74,0.00041835,30]
[310938995,1704822792769,-500.0,0.00041835,30]
[310938996,1704822792778,-500.0,0.00041835,30]
[310938997,1704822792789,-596.03,0.00041835,30]
[310938998,1704822792798,-859.98,0.00041835,30]
[310938999,1704822792808,-1208.31,0.00041835,30]
[310939000,1704822792818,-1009.5,0.00041835,30]
[310939001,1704822792827,-1834.86,0.00041835,30]
[310939002,1704822792836,-2228.31,0.00041835,30]
[310939003,1704822792846,-500.0,0.00041835,30]
[310939004,1704822792855,-758.85,0.00041835,30]
[310939005,1704822792865,-500.0,0.00041835,30]
[310939006,1704822792874,-1653.94,0.00041835,30]
[310939007,1704822792883,-850.13,0.00041835,30]
[310939008,1704822792893,-2251.85,0.00041835,30]
[310939009,1704822792902,-1855.79,0.00041835,30]
[310939010,1704822792912,-1305.33,0.00041835,30]
[310939011,1704822792921,-500.0,0.00041835,30]
[310939012,1704822792931,-1047.74,0.00041835,30]
[310939013,1704822792940,-500.0,0.00041835,30]
[310939014,1704822792949,-657.1,0.00041835,30]
[310939015,1704822792958,-2864.14,0.00041835,30]
[310939016,1704822793074,-500.0,0.00041835,30]
[310939017,1704822793085,-942.34,0.00041835,30]
[310939018,1704822793094,-500.0,0.00041835,30]
[310939019,1704822793103,-514.02,0.00041835,30]
[310939020,1704822793112,-1069.4,0.00041835,30]
[310939021,1704822793122,-2011.82,0.00041835,30]
[310939022,1704822793132,-404.15359819,0.00041835,14]
[310939023,1704822793141,-500.0,0.00041835,30]
[310939024,1704822793151,-2179.29,0.00041835,30]
[310939025,1704822793160,-1226.36,0.00041835,30]
[310939026,1704822793170,-313.31513033,0.00041835,30]
[310939027,1704822793180,-500.0,0.00041835,30]
[310939028,1704822793189,-1167.82,0.00041835,30]
[310939029,1704822793198,-1543.99,0.00041835,30]
[310939030,1704822793207,-650.25,0.00041835,30]
[310939031,1704822793217,-1662.23,0.00041835,30]
[310939032,1704822793227,-1333.2,0.00041835,30]
[310939033,1704822793237,-593.34,0.00041835,30]
[310939034,1704822793247,-1120.58,0.00041835,30]
[310939035,1704822793257,-1539.75,0.00041835,30]
[310939036,1704822793266,-500.0,0.00041835,30]
[310939037,1704822793275,-500.0,0.00041835,30]
[310939038,1704822793285,-577.44,0.00041835,30]
[310939039,1704822793295,-500.0,0.00041835,30]
[310939040,1704822793305,-2132.61,0.00041835,30]
[310939041,1704822793316,-2334.2,0.00041835,30]
[310939042,1704822793325,-2030.29,0.00041835,30]
[310939043,1704822793335,-820.59,0.00041835,30]
[310939044,1704822793344,-500.0,0.00041835,30]
[310939045,1704822793354,-625.74147809,0.00041835,30]
[310939046,1704822793364,-717.62,0.00041835,30]
[310939047,1704822793373,-248.64026828,0.00041835,30]
[310939048,1704822793382,-648.37,0.00041835,30]
[310939049,1704822793391,-500.0,0.00041835,30]
[310939050,1704822793401,-2212.18,0.00041835,30]
[310939051,1704822793410,-500.0,0.00041835,30]
[310939052,1704822793419,-500.0,0.00041835,30]
[310939053,1704822793429,-500.0,0.00041835,30]
[310939054,1704822793438,-1957.26,0.00041835,30]
[310939055,1704822793446,-500.0,0.00041835,30]
[310939056,1704822793456,-278.0875984,0.00041835,30]
[310939057,1704822793465,-789.94,0.00041835,7]
[310939058,1704822793474,-1295.45,0.00041835,30]
[310939059,1704822793484,-524.13,0.00041835,30]
[310939060,1704822793493,-500.0,0.00041835,30]
[310939061,1704822793502,-500.0,0.00041835,30]
[310939062,1704822793514,-1177.5,0.00041835,30]
[310939063,1704822793523,-846.58,0.00041835,30]
[310939064,1704822793532,-626.38,0.00041835,30]
[310939065,1704822793542,-1523.1,0.00041835,30]
[310939066,1704822793551,-1815.37,0.00041835,30]
[310939067,1704822793560,-1680.4,0.00041835,30]
[310939068,1704822793569,-774.08,0.00041835,30]
[310939069,1704822793578,-500.0,0.00041835,30]
[310939070,1704822793588,-500.0,0.00041835,30]
[310939071,1704822793598,-1453.99,0.00041835,30]
[310939072,1704822793607,-500.0,0.00041835,30]
[310939073,1704822793616,-741.95,0.00041835,30]
[310939074,1704822793625,-522.28,0.00041835,30]
[310939075,1704822793635,-2160.84,0.00041835,30]
[310939076,1704822793645,-1117.93,0.00041835,30]
[310939077,1704822793655,-976.55,0.00041835,30]
[310939078,1704822793664,-500.0,0.00041835,30]
[310939079,1704822793674,-785.61,0.00041835,30]
[310939080,1704822793684,-602.19,0.00041835,30]
[310939081,1704822793693,-500.0,0.00041835,30]
[310939082,1704822793703,-500.0,0.00041835,30]
[310939083,1704822793713,-1722.63,0.00041835,30]
[310939084,1704822793723,-625.26,0.00041835,30]
[310939085,1704822793733,-500.0,0.00041835,30]
[310939086,1704822793742,-1678.63,0.00041835,30]
[310939087,1704822793751,-500.0,0.00041835,30]
[310939088,1704822793760,-649.03,0.00041835,30]
[310939089,1704822793769,-534.61,0.00041835,30]
[310939090,1704822793779,-1131.06,0.00041835,30]
[310939091,1704822793788,-1859.73,0.00041835,30]
[310939092,1704822793798,-500.0,0.00041835,30]
[310939093,1704822793807,-500.0,0.00041835,30]
[310939094,1704822793816,-500.0,0.00041835,30]
[310939095,1704822793826,-2434.09,0.00041835,30]
[310939096,1704822793835,-500.0,0.00041835,30]
[310939097,1704822793844,-709.81,0.00041835,30]
[310939098,1704822793853,-500.0,0.00041835,30]
[310939099,1704822793863,-500.0,0.00041835,30]
[310939100,1704822793872,-2143.09,0.00041835,30]
[310939101,1704822793882,-1393.92,0.00041835,30]
[310939102,1704822793891,-500.0,0.00041835,30]
[310939103,1704822793900,-1175.4,0.00041835,30]
[310939104,1704822793910,-911.8,0.00041835,30]
[310939105,1704822793919,-1811.74,0.00041835,30]
[310939106,1704822793929,-500.0,0.00041835,30]
[310939107,1704822793939,-651.7,0.00041835,30]
[310939108,1704822793949,-1064.25,0.00041835,30]
[310939109,1704822793959,-2616.95,0.00041835,30]
[310939110,1704822793968,-500.0,0.00041835,7]
[310939111,1704822793978,-1225.92,0.00041835,30]
[310939112,1704822793987,-558.53,0.00041835,30]
[310939113,1704822793997,-867.77,0.00041835,30]
[310939114,1704822794007,-2361.89,0.00041835,30]
[310939115,1704822794016,-1715.96,0.00041835,30]
[310939116,1704822794025,-938.31,0.00041835,30]
[310939117,1704822794035,-930.54,0.00041835,30]
[310939118,1704822794045,-3610.35,0.00041835,30]
[310939119,1704822794054,-1230.33,0.00041835,30]
[310939120,1704822794064,-500.0,0.00041835,30]
[310939121,1704822794073,-500.0,0.00041835,30]
[310939122,1704822794083,-825.9,0.00041835,30]
[310939123,1704822794092,-500.0,0.00041835,30]
[310939124,1704822794102,-1620.01,0.00041835,30]
[310939125,1704822794111,-500.0,0.00041835,30]
[310939126,1704822794121,-500.0,0.00041835,5]
[310939127,1704822794131,-47067.85,0.00041835,30]
[310939128,1704822794141,-2088.17,0.00041835,30]
[310939129,1704822794151,-772.41,0.00041835,30]
[310939130,1704822794160,-500.0,0.00041835,30]
[310939131,1704822794170,-617.74,0.00041835,30]
[310939132,1704822794180,-607.62,0.00041835,30]
[310939133,1704822794190,-635.57,0.00041835,30]
[310939134,1704822794199,-500.0,0.00041835,30]
[310939135,1704822794208,-639.75,0.00041835,30]
[310939136,1704822794217,-500.0,0.00041835,30]
[310939137,1704822794227,-1279.97,0.00041835,30]
[310939138,1704822794235,-9711.74,0.00041835,30]
[310939139,1704822794246,-2008.91,0.00041835,30]
[310939140,1704822794255,-500.0,0.00041835,30]
[310939141,1704822794265,-2385.47,0.00041835,30]
[310939142,1704822794275,-625.83,0.00041835,30]
[310939143,1704822794284,-1000.0,0.00041835,30]
[310939144,1704822794295,-1531.31,0.00041835,30]
[310939145,1704822794306,-500.0,0.00041835,30]
[310939146,1704822794315,-500.0,0.00041835,30]
[310939147,1704822794324,-5818.31,0.00041835,30]
[310939148,1704822794334,-504.54,0.00041835,30]
[310939149,1704822794343,-2227.07,0.00041835,30]
[310939150,1704822794353,-500.0,0.00041835,30]
[310939151,1704822794363,-500.0,0.00041835,30]
[310939152,1704822794372,-500.0,0.00041835,30]
[310939153,1704822794382,-500.0,0.00041835,30]
[310939154,1704822794391,-500.0,0.00041835,30]
[310939155,1704822794400,-1067.05,0.00041835,30]
[310939156,1704822794409,-500.0,0.00041835,30]
[310939157,1704822794419,-1943.97,0.00041835,30]
[310939158,1704822794429,-7418.59,0.00041835,30]
[310939159,1704822794438,-894.02,0.00041835,30]
[310939160,1704822794448,-1912.66,0.00041835,30]
[310939161,1704822794457,-729.4,0.00041835,30]
[310939162,1704822794466,-2826.17,0.00041835,30]
[310939163,1704822794476,-1727.15,0.00041835,30]
[310939164,1704822794486,-746.04,0.00041835,30]
[310939165,1704822794495,-500.0,0.00041835,30]
[310939166,1704822794505,-500.0,0.00041835,30]
[310939167,1704822794517,-1546.34,0.00041835,30]
[310939168,1704822794526,-800.98,0.00041835,30]
[310939169,1704822794536,-1055.45,0.00041835,30]
[310939170,1704822794546,-13152.21,0.00041835,30]
[310939171,1704822794555,-500.0,0.00041835,30]
[310939172,1704822794565,-5322.78,0.00041835,30]
[310939173,1704822794574,-1631.56,0.00041835,30]
[310939174,1704822794583,-4266.73,0.00041835,30]
[310939175,1704822794592,-828.04,0.00041835,30]
[310939176,1704822794601,-517.04,0.00041835,30]
[310939177,1704822794611,-2057.01,0.00041835,30]
[310939178,1704822794620,-675.39,0.00041835,30]
[310939179,1704822794629,-500.0,0.00041835,30]
[310939180,1704822794639,-500.0,0.00041835,30]
[310939181,1704822794648,-661.04,0.00041835,30]
[310939182,1704822794657,-500.0,0.00041835,30]
[310939183,1704822794667,-1487.61,0.00041835,30]
[310939184,1704822794676,-987.57,0.00041835,30]
[310939185,1704822794685,-1048.77,0.00041835,30]
[310939186,1704822794694,-1523.98,0.00041835,30]
[310939187,1704822794703,-500.0,0.00041835,30]
[310939188,1704822794712,-3937.86,0.00041835,30]
[310939189,1704822794721,-2062.34,0.00041835,30]
[310939190,1704822794731,-500.0,0.00041835,30]
[310939191,1704822794740,-2352.32,0.00041835,30]
[310939192,1704822794749,-500.0,0.00041835,30]
[310939193,1704822794758,-1972.66,0.00041835,30]
[310939194,1704822794768,-2511.39,0.00041835,30]
[310939195,1704822794777,-519.78530202,0.00041835,2]
[310939196,1704822794786,-851.78,0.00041835,30]
[310939197,1704822794796,-500.0,0.00041835,30]
[310939198,1704822794806,-1264.22,0.00041835,30]
[310939199,1704822794815,-635.47,0.00041835,30]
[310939200,1704822794824,-1416.21,0.00041835,30]
[310939201,1704822794834,-805.58,0.00041835,30]
[310939202,1704822794843,-500.0,0.00041835,30]
[310939203,1704822794852,-500.0,0.00041835,30]
[310939204,1704822794861,-500.0,0.00041835,30]
[310939205,1704822794870,-1042.3,0.00041835,30]
[310939206,1704822794880,-556.85,0.00041835,30]
[310939207,1704822794889,-500.0,0.00041835,30]
[310939208,1704822794898,-808.82,0.00041835,30]
[310939209,1704822794907,-544.13,0.00041835,30]
[310939210,1704822794916,-2529.67,0.00041835,30]
[310939211,1704822794925,-500.0,0.00041835,30]
[310939212,1704822794935,-3905.38,0.00041835,30]
[310939213,1704822794944,-1707.29,0.00041835,30]